[Event "Titled Tuesday Blitz May 16 Early 2023"]
[White "Sala, Giulia"]
[Black "Ismagilov, Damir"]
[WhiteFideId "2840451"]
[BlackFideId "34199982"]
[WhiteElo "1769"]
[BlackElo "2143"]
[Result "0-1"]
[Round "01"]
[TimeControl "180+2"]
[Date "2023.05.16"]
[WhiteClock "0:00:03"]
[BlackClock "0:00:09"]

1. e4 {[%clk 0:03:00]}  g6 {[%clk 0:02:52]} 2. e5 {[%clk 0:02:55]}  Bg7 {[%clk 0:02:50]} 3. d4 {[%clk 0:02:54]}  c5 {[%clk 0:02:47]} 4. Nf3 {[%clk 0:02:51]}  cxd4 {[%clk 0:02:41]} 5. Qxd4 {[%clk 0:02:51]}  Nc6 {[%clk 0:02:40]} 6. Qe4 {[%clk 0:02:47]}  Nxe5 {[%clk 0:02:29]} 7. Nxe5 {[%clk 0:02:37]}  Qa5+ {[%clk 0:02:28]} 8. c3 {[%clk 0:02:33]}  Qxe5 {[%clk 0:02:25]} 9. Qxe5 {[%clk 0:02:33]}  Bxe5 {[%clk 0:02:26]} 10. Be3 {[%clk 0:02:34]}  b6 {[%clk 0:02:20]} 11. Na3 {[%clk 0:02:32]}  Bb7 {[%clk 0:02:19]} 12. O-O-O {[%clk 0:02:31]}  O-O-O {[%clk 0:02:05]} 13. Nb5 {[%clk 0:02:26]}  Kb8 {[%clk 0:01:59]} 14. f4 {[%clk 0:02:21]}  Bg7 {[%clk 0:01:54]} 15. Bc4 {[%clk 0:02:02]}  d5 {[%clk 0:01:43]} 16. Be2 {[%clk 0:02:01]}  Nf6 {[%clk 0:01:38]} 17. Bf3 {[%clk 0:01:57]}  e6 {[%clk 0:01:31]} 18. Bd4 {[%clk 0:01:52]}  Ne8 {[%clk 0:01:26]} 19. Be3 {[%clk 0:01:49]}  Nd6 {[%clk 0:01:21]} 20. Nd4 {[%clk 0:01:49]}  Nf5 {[%clk 0:01:18]} 21. Bf2 {[%clk 0:01:47]}  Nxd4 {[%clk 0:01:17]} 22. Bxd4 {[%clk 0:01:42]}  Bxd4 {[%clk 0:01:16]} 23. Rxd4 {[%clk 0:01:43]}  Ba6 {[%clk 0:01:04]} 24. g4 {[%clk 0:01:39]}  Kc7 {[%clk 0:01:03]} 25. Re1 {[%clk 0:01:38]}  Rhe8 {[%clk 0:00:59]} 26. f5 {[%clk 0:01:32]}  Bb7 {[%clk 0:00:58]} 27. fxe6 {[%clk 0:01:30]}  fxe6 {[%clk 0:00:55]} 28. Rf4 {[%clk 0:01:28]}  e5 {[%clk 0:00:51]} 29. Ra4 {[%clk 0:01:17]}  a5 {[%clk 0:00:48]} 30. g5 {[%clk 0:01:04]}  Bc6 {[%clk 0:00:48]} 31. Rh4 {[%clk 0:01:04]}  Rd7 {[%clk 0:00:47]} 32. Bg4 {[%clk 0:01:04]}  Rf7 {[%clk 0:00:47]} 33. Bh3 {[%clk 0:01:02]}  Kd6 {[%clk 0:00:40]} 34. Bg2 {[%clk 0:00:58]}  Ree7 {[%clk 0:00:37]} 35. Re2 {[%clk 0:00:53]}  Rf4 {[%clk 0:00:35]} 36. Rxf4 {[%clk 0:00:44]}  exf4 {[%clk 0:00:36]} 37. Rf2 {[%clk 0:00:45]}  Rf7 {[%clk 0:00:33]} 38. Bh3 {[%clk 0:00:44]}  Bd7 {[%clk 0:00:32]} 39. Bg2 {[%clk 0:00:44]}  Ke5 {[%clk 0:00:28]} 40. Re2+ {[%clk 0:00:43]}  Kd6 {[%clk 0:00:26]} 41. Rf2 {[%clk 0:00:39]}  Rf5 {[%clk 0:00:22]} 42. h4 {[%clk 0:00:37]}  Rf7 {[%clk 0:00:22]} 43. Kd2 {[%clk 0:00:37]}  Kc5 {[%clk 0:00:16]} 44. b3 {[%clk 0:00:33]}  d4 {[%clk 0:00:15]} 45. c4 {[%clk 0:00:27]}  Bc6 {[%clk 0:00:14]} 46. Bh3 {[%clk 0:00:26]}  f3 {[%clk 0:00:13]} 47. Kd3 {[%clk 0:00:23]}  Rf4 {[%clk 0:00:13]} 48. Be6 {[%clk 0:00:18]}  Be4+ {[%clk 0:00:12]} 49. Kd2 {[%clk 0:00:17]}  Rxh4 {[%clk 0:00:12]} 50. Bd5 {[%clk 0:00:16]}  Bxd5 {[%clk 0:00:12]} 51. cxd5 {[%clk 0:00:17]}  Rf4 {[%clk 0:00:10]} 52. Kd3 {[%clk 0:00:09]}  Kxd5 {[%clk 0:00:10]} 53. Rf1 {[%clk 0:00:09]}  f2 {[%clk 0:00:10]} 54. Ke2 {[%clk 0:00:09]}  Ke4 {[%clk 0:00:10]} 55. Kd2 {[%clk 0:00:09]}  d3 {[%clk 0:00:10]} 56. Rd1 {[%clk 0:00:03]}  f1=Q {[%clk 0:00:09]} 0-1


[Site "https://www.chess.com"]

[Event "Titled Tuesday Blitz May 16 Early 2023"]
[White "Gold_Ocean"]
[Black "Jimenez Fernandez, Rebeca"]
[BlackFideId "32070934"]
[WhiteElo "2595"]
[BlackElo "2008"]
[Result "1-0"]
[Round "01"]
[TimeControl "180+2"]
[Date "2023.05.16"]
[WhiteClock "0:01:36"]
[BlackClock "0:00:15"]

1. Nf3 {[%clk 0:02:56]}  d5 {[%clk 0:02:58]} 2. c4 {[%clk 0:02:55]}  Nf6 {[%clk 0:02:59]} 3. cxd5 {[%clk 0:02:55]}  Nxd5 {[%clk 0:02:59]} 4. g3 {[%clk 0:02:56]}  c6 {[%clk 0:02:56]} 5. Bg2 {[%clk 0:02:39]}  g6 {[%clk 0:02:56]} 6. O-O {[%clk 0:02:26]}  Bg7 {[%clk 0:02:56]} 7. Nc3 {[%clk 0:02:26]}  O-O {[%clk 0:02:56]} 8. a3 {[%clk 0:02:26]}  e5 {[%clk 0:02:53]} 9. d3 {[%clk 0:02:25]}  h6 {[%clk 0:02:50]} 10. Qc2 {[%clk 0:02:25]}  Be6 {[%clk 0:02:49]} 11. Bd2 {[%clk 0:02:25]}  Qd7 {[%clk 0:02:46]} 12. Ne4 {[%clk 0:02:25]}  Na6 {[%clk 0:02:36]} 13. Rfd1 {[%clk 0:02:23]}  Bh3 {[%clk 0:02:35]} 14. Bh1 {[%clk 0:02:23]}  f5 {[%clk 0:02:26]} 15. Nc3 {[%clk 0:02:22]}  e4 {[%clk 0:02:21]} 16. dxe4 {[%clk 0:02:21]}  fxe4 {[%clk 0:02:05]} 17. Nxe4 {[%clk 0:02:14]}  Qf5 {[%clk 0:02:00]} 18. Rac1 {[%clk 0:02:07]}  Rae8 {[%clk 0:01:59]} 19. Nc3 {[%clk 0:02:00]}  Nxc3 {[%clk 0:01:51]} 20. Bxc3 {[%clk 0:02:00]}  Bxc3 {[%clk 0:01:49]} 21. bxc3 {[%clk 0:01:46]}  Qc5 {[%clk 0:01:39]} 22. Bg2 {[%clk 0:01:45]}  Bxg2 {[%clk 0:01:34]} 23. Kxg2 {[%clk 0:01:46]}  Rf6 {[%clk 0:01:22]} 24. Rd4 {[%clk 0:01:40]}  Nc7 {[%clk 0:01:15]} 25. Rcd1 {[%clk 0:01:38]}  Nd5 {[%clk 0:01:12]} 26. c4 {[%clk 0:01:37]}  Nb6 {[%clk 0:00:49]} 27. Rf4 {[%clk 0:01:37]}  Rxf4 {[%clk 0:00:36]} 28. Qxg6+ {[%clk 0:01:36]}  Kh8 {[%clk 0:00:20]} 29. Qxh6+ {[%clk 0:01:36]}  Kg8 {[%clk 0:00:20]} 30. Qg6+ {[%clk 0:01:37]}  Kh8 {[%clk 0:00:19]} 31. Qxe8+ {[%clk 0:01:36]}  Rf8 {[%clk 0:00:17]} 32. Qe5+ {[%clk 0:01:36]}  Kg8 {[%clk 0:00:15]} 33. Qxc5 {[%clk 0:01:36]} 1-0


[Site "https://www.chess.com"]

[Event "Titled Tuesday Blitz May 16 Early 2023"]
[White "Bodnaruk, Anastasia"]
[Black "rikchessmx"]
[WhiteFideId "4181751"]
[WhiteElo "2304"]
[BlackElo "2254"]
[Result "1-0"]
[Round "01"]
[TimeControl "180+2"]
[Date "2023.05.16"]
[WhiteClock "0:00:03"]
[BlackClock "0:00:00"]

1. e4 {[%clk 0:02:59]}  c5 {[%clk 0:02:45]} 2. Nc3 {[%clk 0:02:58]}  g6 {[%clk 0:02:45]} 3. Nge2 {[%clk 0:02:52]}  Bg7 {[%clk 0:02:44]} 4. d4 {[%clk 0:02:51]}  cxd4 {[%clk 0:02:45]} 5. Nxd4 {[%clk 0:02:52]}  Nc6 {[%clk 0:02:45]} 6. Be3 {[%clk 0:02:51]}  Nf6 {[%clk 0:02:43]} 7. Bc4 {[%clk 0:02:51]}  Qa5 {[%clk 0:02:43]} 8. f3 {[%clk 0:02:43]}  d6 {[%clk 0:02:35]} 9. O-O {[%clk 0:02:30]}  Bd7 {[%clk 0:02:33]} 10. Qd2 {[%clk 0:02:21]}  O-O {[%clk 0:02:26]} 11. Nxc6 {[%clk 0:02:09]}  Bxc6 {[%clk 0:02:24]} 12. Nd5 {[%clk 0:02:08]}  Qd8 {[%clk 0:02:23]} 13. Bb3 {[%clk 0:02:00]}  Nxd5 {[%clk 0:02:20]} 14. exd5 {[%clk 0:01:59]}  Bd7 {[%clk 0:02:18]} 15. Rae1 {[%clk 0:01:57]}  Bxb2 {[%clk 0:02:10]} 16. c3 {[%clk 0:01:56]}  Ba3 {[%clk 0:02:10]} 17. Kh1 {[%clk 0:01:45]}  Bc5 {[%clk 0:02:07]} 18. Bh6 {[%clk 0:01:41]}  Re8 {[%clk 0:02:07]} 19. Qf4 {[%clk 0:01:34]}  a5 {[%clk 0:02:01]} 20. a4 {[%clk 0:01:18]}  b5 {[%clk 0:02:01]} 21. h4 {[%clk 0:00:48]}  bxa4 {[%clk 0:01:55]} 22. Ba2 {[%clk 0:00:49]}  Rb8 {[%clk 0:01:48]} 23. Re2 {[%clk 0:00:49]}  a3 {[%clk 0:01:46]} 24. h5 {[%clk 0:00:48]}  Rb2 {[%clk 0:01:44]} 25. Rfe1 {[%clk 0:00:48]}  Rxe2 {[%clk 0:01:41]} 26. Rxe2 {[%clk 0:00:48]}  a4 {[%clk 0:01:40]} 27. hxg6 {[%clk 0:00:44]}  hxg6 {[%clk 0:01:39]} 28. Bg5 {[%clk 0:00:44]}  f6 {[%clk 0:01:33]} 29. Bh6 {[%clk 0:00:41]}  Kf7 {[%clk 0:01:32]} 30. g4 {[%clk 0:00:34]}  Rh8 {[%clk 0:01:30]} 31. Kg2 {[%clk 0:00:35]}  Rh7 {[%clk 0:01:18]} 32. g5 {[%clk 0:00:29]}  f5 {[%clk 0:01:10]} 33. Qc4 {[%clk 0:00:21]}  Qb6 {[%clk 0:01:04]} 34. Qd3 {[%clk 0:00:20]}  Bb5 {[%clk 0:01:00]} 35. c4 {[%clk 0:00:20]}  Bd7 {[%clk 0:00:59]} 36. Qc3 {[%clk 0:00:20]}  Kg8 {[%clk 0:00:58]} 37. Qc2 {[%clk 0:00:10]}  Bd4 {[%clk 0:00:53]} 38. Qd3 {[%clk 0:00:09]}  Be5 {[%clk 0:00:47]} 39. Rc2 {[%clk 0:00:07]}  Qc5 {[%clk 0:00:44]} 40. Qe2 {[%clk 0:00:07]}  f4 {[%clk 0:00:43]} 41. Rc1 {[%clk 0:00:05]}  Bf5 {[%clk 0:00:39]} 42. Rd1 {[%clk 0:00:05]}  Qb4 {[%clk 0:00:39]} 43. Qd2 {[%clk 0:00:05]}  Qxd2+ {[%clk 0:00:38]} 44. Rxd2 {[%clk 0:00:06]}  Bc3 {[%clk 0:00:37]} 45. Rd1 {[%clk 0:00:06]}  Bb2 {[%clk 0:00:34]} 46. c5 {[%clk 0:00:06]}  Bc2 {[%clk 0:00:30]} 47. c6 {[%clk 0:00:06]}  Kf7 {[%clk 0:00:27]} 48. Rd2 {[%clk 0:00:05]}  Bb3 {[%clk 0:00:25]} 49. Bb1 {[%clk 0:00:02]}  Rh8 {[%clk 0:00:24]} 50. Re2 {[%clk 0:00:02]}  Rc8 {[%clk 0:00:22]} 51. Re4 {[%clk 0:00:02]}  a2 {[%clk 0:00:21]} 52. Bxa2 {[%clk 0:00:02]}  Bxa2 {[%clk 0:00:21]} 53. Rxf4+ {[%clk 0:00:03]}  Kg8 {[%clk 0:00:19]} 54. c7 {[%clk 0:00:03]}  a3 {[%clk 0:00:13]} 55. Rf8+ {[%clk 0:00:02]}  Rxf8 {[%clk 0:00:08]} 56. Bxf8 {[%clk 0:00:02]}  Bxd5 {[%clk 0:00:07]} 57. c8=Q {[%clk 0:00:03]}  a2 {[%clk 0:00:07]} 58. Bh6+ {[%clk 0:00:03]}  Kf7 {[%clk 0:00:07]} 59. Qf8+ {[%clk 0:00:03]}  Ke6 {[%clk 0:00:07]} 60. Qg8+ {[%clk 0:00:03]}  Ke5 {[%clk 0:00:07]} 61. Qg7+ {[%clk 0:00:03]}  Kf5 {[%clk 0:00:05]} 62. Qxb2 {[%clk 0:00:04]}  e5 {[%clk 0:00:04]} 63. Qc2+ {[%clk 0:00:04]}  e4 {[%clk 0:00:04]} 64. Qb2 {[%clk 0:00:03]}  exf3+ {[%clk 0:00:03]} 65. Kf2 {[%clk 0:00:03]}  Kg4 {[%clk 0:00:03]} 66. Bg7 {[%clk 0:00:03]}  Be4 {[%clk 0:00:03]} 67. Bd4 {[%clk 0:00:03]}  Bd5 {[%clk 0:00:02]} 68. Qd2 {[%clk 0:00:03]}  Kf5 {[%clk 0:00:00]} 69. Qe3 {[%clk 0:00:03]} 1-0


[Site "https://www.chess.com"]

[Event "Titled Tuesday Blitz May 16 Early 2023"]
[White "Pacan-Milej, Kosma"]
[Black "Antonio, Jorge Carlos"]
[WhiteFideId "21800537"]
[BlackFideId "113190"]
[WhiteElo "2302"]
[BlackElo "2247"]
[Result "1/2-1/2"]
[Round "01"]
[TimeControl "180+2"]
[Date "2023.05.16"]
[WhiteClock "0:01:39"]
[BlackClock "0:01:38"]

1. d4 {[%clk 0:03:00]}  d5 {[%clk 0:02:59]} 2. c4 {[%clk 0:02:59]}  c6 {[%clk 0:03:00]} 3. Nc3 {[%clk 0:02:59]}  Nf6 {[%clk 0:02:57]} 4. e3 {[%clk 0:03:00]}  Bf5 {[%clk 0:02:54]} 5. Qb3 {[%clk 0:02:59]}  Qb6 {[%clk 0:02:51]} 6. cxd5 {[%clk 0:02:59]}  Qxb3 {[%clk 0:02:48]} 7. axb3 {[%clk 0:03:00]}  Nxd5 {[%clk 0:02:45]} 8. Nxd5 {[%clk 0:02:58]}  cxd5 {[%clk 0:02:43]} 9. Nf3 {[%clk 0:02:59]}  f6 {[%clk 0:02:40]} 10. Bd2 {[%clk 0:02:57]}  Nc6 {[%clk 0:02:40]} 11. Bb5 {[%clk 0:02:54]}  Bd7 {[%clk 0:02:37]} 12. O-O {[%clk 0:02:52]}  e6 {[%clk 0:02:34]} 13. Ne1 {[%clk 0:02:51]}  Bd6 {[%clk 0:02:34]} 14. Nd3 {[%clk 0:02:51]}  a6 {[%clk 0:02:29]} 15. Rfc1 {[%clk 0:02:42]}  Ke7 {[%clk 0:02:28]} 16. Bxc6 {[%clk 0:02:42]}  Bxc6 {[%clk 0:02:20]} 17. Bb4 {[%clk 0:02:42]}  g5 {[%clk 0:02:16]} 18. Bxd6+ {[%clk 0:02:40]}  Kxd6 {[%clk 0:02:16]} 19. Nc5 {[%clk 0:02:39]}  h5 {[%clk 0:02:13]} 20. f3 {[%clk 0:02:33]}  Rac8 {[%clk 0:02:09]} 21. Kf2 {[%clk 0:02:31]}  g4 {[%clk 0:01:55]} 22. Rc2 {[%clk 0:02:26]}  e5 {[%clk 0:01:51]} 23. Rd1 {[%clk 0:02:18]}  gxf3 {[%clk 0:01:44]} 24. gxf3 {[%clk 0:02:18]}  Rcg8 {[%clk 0:01:43]} 25. Rdc1 {[%clk 0:01:39]}  h4 {[%clk 0:01:38]} 1/2-1/2


[Site "https://www.chess.com"]

[Event "Titled Tuesday Blitz May 16 Early 2023"]
[White "mjelcic"]
[Black "Berezin, Viktor"]
[BlackFideId "14107872"]
[WhiteElo "2236"]
[BlackElo "2310"]
[Result "1-0"]
[Round "01"]
[TimeControl "180+2"]
[Date "2023.05.16"]
[WhiteClock "0:01:40"]
[BlackClock "0:00:55"]

1. c4 {[%clk 0:02:59]}  Nf6 {[%clk 0:02:58]} 2. g3 {[%clk 0:02:58]}  g6 {[%clk 0:02:57]} 3. Bg2 {[%clk 0:02:59]}  Bg7 {[%clk 0:02:58]} 4. Nc3 {[%clk 0:02:58]}  O-O {[%clk 0:02:59]} 5. Nf3 {[%clk 0:02:57]}  d6 {[%clk 0:02:58]} 6. O-O {[%clk 0:02:55]}  Nc6 {[%clk 0:02:57]} 7. d3 {[%clk 0:02:54]}  e5 {[%clk 0:02:57]} 8. Rb1 {[%clk 0:02:54]}  Re8 {[%clk 0:02:51]} 9. Bg5 {[%clk 0:02:42]}  h6 {[%clk 0:02:50]} 10. Bxf6 {[%clk 0:02:42]}  Bxf6 {[%clk 0:02:51]} 11. b4 {[%clk 0:02:41]}  Bg7 {[%clk 0:02:51]} 12. b5 {[%clk 0:02:40]}  Nd4 {[%clk 0:02:44]} 13. Nxd4 {[%clk 0:02:36]}  exd4 {[%clk 0:02:45]} 14. Nd5 {[%clk 0:02:33]}  Rb8 {[%clk 0:02:39]} 15. a4 {[%clk 0:02:32]}  Bg4 {[%clk 0:02:36]} 16. Bf3 {[%clk 0:02:32]}  Bxf3 {[%clk 0:02:35]} 17. exf3 {[%clk 0:02:32]}  h5 {[%clk 0:02:27]} 18. Re1 {[%clk 0:02:28]}  Qd7 {[%clk 0:02:19]} 19. Qd2 {[%clk 0:02:19]}  h4 {[%clk 0:02:15]} 20. Qf4 {[%clk 0:02:16]}  hxg3 {[%clk 0:02:05]} 21. fxg3 {[%clk 0:02:16]}  f5 {[%clk 0:01:57]} 22. Qg5 {[%clk 0:02:12]}  Kf7 {[%clk 0:01:50]} 23. Kf2 {[%clk 0:02:09]}  c6 {[%clk 0:01:46]} 24. bxc6 {[%clk 0:02:05]}  bxc6 {[%clk 0:01:46]} 25. Rxb8 {[%clk 0:02:05]}  Rxe1 {[%clk 0:01:37]} 26. Nf4 {[%clk 0:01:50]}  Re6 {[%clk 0:01:02]} 27. Nxe6 {[%clk 0:01:50]}  Qxe6 {[%clk 0:01:03]} 28. Rb7+ {[%clk 0:01:50]}  Kg8 {[%clk 0:01:00]} 29. Re7 {[%clk 0:01:43]}  Bh6 {[%clk 0:00:55]} 30. Rxe6 {[%clk 0:01:40]}  Bxg5 {[%clk 0:00:55]} 31. Rxg6+ {[%clk 0:01:40]} 1-0


[Site "https://www.chess.com"]

[Event "Titled Tuesday Blitz May 16 Early 2023"]
[White "Isajevsky, Anton"]
[Black "Chakravarthi Reddy, M"]
[WhiteFideId "4142500"]
[BlackFideId "25009532"]
[WhiteElo "2510"]
[BlackElo "2201"]
[Result "1-0"]
[Round "01"]
[TimeControl "180+2"]
[Date "2023.05.16"]
[WhiteClock "0:00:11"]
[BlackClock "0:00:07"]

1. c4 {[%clk 0:02:59]}  e5 {[%clk 0:02:59]} 2. g3 {[%clk 0:02:56]}  d5 {[%clk 0:02:58]} 3. cxd5 {[%clk 0:02:56]}  Qxd5 {[%clk 0:02:59]} 4. Nf3 {[%clk 0:02:56]}  Nc6 {[%clk 0:02:59]} 5. Nc3 {[%clk 0:02:56]}  Qd8 {[%clk 0:03:00]} 6. Bg2 {[%clk 0:02:56]}  Nf6 {[%clk 0:03:01]} 7. O-O {[%clk 0:02:56]}  h6 {[%clk 0:03:01]} 8. a3 {[%clk 0:02:52]}  a5 {[%clk 0:03:01]} 9. d3 {[%clk 0:02:27]}  Bd6 {[%clk 0:03:01]} 10. Be3 {[%clk 0:02:09]}  O-O {[%clk 0:03:00]} 11. Rc1 {[%clk 0:02:08]}  Re8 {[%clk 0:02:53]} 12. Na4 {[%clk 0:02:03]}  e4 {[%clk 0:02:48]} 13. dxe4 {[%clk 0:01:52]}  Nxe4 {[%clk 0:02:47]} 14. Nd2 {[%clk 0:01:46]}  Bf5 {[%clk 0:02:33]} 15. Nxe4 {[%clk 0:01:26]}  Bxe4 {[%clk 0:02:33]} 16. Bxe4 {[%clk 0:01:26]}  Rxe4 {[%clk 0:02:34]} 17. Nc3 {[%clk 0:01:26]}  Re5 {[%clk 0:02:07]} 18. Bf4 {[%clk 0:01:22]}  Re6 {[%clk 0:02:00]} 19. Nd5 {[%clk 0:01:14]}  Bxf4 {[%clk 0:01:55]} 20. Nxf4 {[%clk 0:01:14]}  Rd6 {[%clk 0:01:55]} 21. Qa4 {[%clk 0:01:12]}  Qf6 {[%clk 0:01:51]} 22. Qb5 {[%clk 0:01:09]}  Rb8 {[%clk 0:01:18]} 23. Rfd1 {[%clk 0:01:04]}  Nd4 {[%clk 0:01:14]} 24. Qxa5 {[%clk 0:00:55]}  g5 {[%clk 0:01:10]} 25. Qxc7 {[%clk 0:00:54]}  Rbd8 {[%clk 0:01:09]} 26. Rxd4 {[%clk 0:00:49]}  Rxd4 {[%clk 0:01:05]} 27. Nd3 {[%clk 0:00:49]}  R4d7 {[%clk 0:00:59]} 28. Qc3 {[%clk 0:00:43]}  Qe6 {[%clk 0:00:56]} 29. Rc2 {[%clk 0:00:42]}  Rd6 {[%clk 0:00:52]} 30. Qc7 {[%clk 0:00:36]}  R6d7 {[%clk 0:00:52]} 31. Qa5 {[%clk 0:00:31]}  Rd5 {[%clk 0:00:47]} 32. Qb4 {[%clk 0:00:30]}  R5d7 {[%clk 0:00:40]} 33. Kg2 {[%clk 0:00:25]}  Qd5+ {[%clk 0:00:36]} 34. f3 {[%clk 0:00:25]}  Qd4 {[%clk 0:00:36]} 35. Qxd4 {[%clk 0:00:25]}  Rxd4 {[%clk 0:00:36]} 36. Kf2 {[%clk 0:00:24]}  f6 {[%clk 0:00:35]} 37. Rc3 {[%clk 0:00:17]}  b6 {[%clk 0:00:32]} 38. Ke3 {[%clk 0:00:16]}  R4d6 {[%clk 0:00:29]} 39. Rc7 {[%clk 0:00:16]}  Re8+ {[%clk 0:00:28]} 40. Kf2 {[%clk 0:00:16]}  Rde6 {[%clk 0:00:29]} 41. Rc2 {[%clk 0:00:16]}  f5 {[%clk 0:00:29]} 42. Nb4 {[%clk 0:00:15]}  h5 {[%clk 0:00:23]} 43. Nd5 {[%clk 0:00:14]}  h4 {[%clk 0:00:23]} 44. gxh4 {[%clk 0:00:11]}  gxh4 {[%clk 0:00:23]} 45. Nf4 {[%clk 0:00:11]}  Rd6 {[%clk 0:00:18]} 46. Ng2 {[%clk 0:00:07]}  h3 {[%clk 0:00:14]} 47. Nf4 {[%clk 0:00:07]}  Rh6 {[%clk 0:00:14]} 48. Kg3 {[%clk 0:00:07]}  Kf7 {[%clk 0:00:11]} 49. Rc7+ {[%clk 0:00:06]}  Re7 {[%clk 0:00:11]} 50. Rxe7+ {[%clk 0:00:04]}  Kxe7 {[%clk 0:00:12]} 51. Nxh3 {[%clk 0:00:05]}  Rc6 {[%clk 0:00:12]} 52. Nf4 {[%clk 0:00:04]}  Rc2 {[%clk 0:00:13]} 53. b4 {[%clk 0:00:04]}  Ra2 {[%clk 0:00:12]} 54. h4 {[%clk 0:00:04]}  Rxa3 {[%clk 0:00:12]} 55. h5 {[%clk 0:00:03]}  Kd6 {[%clk 0:00:10]} 56. h6 {[%clk 0:00:02]}  Ra7 {[%clk 0:00:10]} 57. Kh4 {[%clk 0:00:03]}  Ke5 {[%clk 0:00:11]} 58. Kg5 {[%clk 0:00:03]}  Rc7 {[%clk 0:00:09]} 59. Ng6+ {[%clk 0:00:03]}  Ke6 {[%clk 0:00:09]} 60. h7 {[%clk 0:00:03]}  Rxh7 {[%clk 0:00:02]} 61. Nf8+ {[%clk 0:00:03]}  Kd5 {[%clk 0:00:03]} 62. Nxh7 {[%clk 0:00:04]}  Kc4 {[%clk 0:00:04]} 63. Kxf5 {[%clk 0:00:04]}  Kxb4 {[%clk 0:00:05]} 64. e4 {[%clk 0:00:05]}  Ka3 {[%clk 0:00:05]} 65. e5 {[%clk 0:00:06]}  b5 {[%clk 0:00:06]} 66. e6 {[%clk 0:00:07]}  b4 {[%clk 0:00:07]} 67. e7 {[%clk 0:00:08]}  b3 {[%clk 0:00:07]} 68. e8=Q {[%clk 0:00:08]}  b2 {[%clk 0:00:08]} 69. Qa8+ {[%clk 0:00:09]}  Kb3 {[%clk 0:00:08]} 70. Qb7+ {[%clk 0:00:10]}  Ka2 {[%clk 0:00:09]} 71. Ke4 {[%clk 0:00:10]}  b1=Q+ {[%clk 0:00:08]} 72. Qxb1+ {[%clk 0:00:11]}  Kxb1 {[%clk 0:00:07]} 73. f4 {[%clk 0:00:11]} 1-0


[Site "https://www.chess.com"]

[Event "Titled Tuesday Blitz May 16 Early 2023"]
[White "ChawitAp"]
[Black "Gatineau, Yovann"]
[BlackFideId "26028999"]
[WhiteElo "2232"]
[BlackElo "2258"]
[Result "0-1"]
[Round "01"]
[TimeControl "180+2"]
[Date "2023.05.16"]
[WhiteClock "0:00:00"]
[BlackClock "0:00:46"]

1. d4 {[%clk 0:02:59]}  c5 {[%clk 0:02:58]} 2. c3 {[%clk 0:02:59]}  cxd4 {[%clk 0:02:57]} 3. cxd4 {[%clk 0:03:00]}  Nf6 {[%clk 0:02:58]} 4. Nf3 {[%clk 0:03:00]}  d5 {[%clk 0:02:56]} 5. Nc3 {[%clk 0:03:00]}  Nc6 {[%clk 0:02:57]} 6. Bf4 {[%clk 0:03:00]}  a6 {[%clk 0:02:49]} 7. e3 {[%clk 0:02:59]}  Bg4 {[%clk 0:02:50]} 8. Rc1 {[%clk 0:02:58]}  e6 {[%clk 0:02:48]} 9. Qb3 {[%clk 0:02:39]}  Bxf3 {[%clk 0:02:41]} 10. gxf3 {[%clk 0:02:27]}  Bb4 {[%clk 0:02:32]} 11. a3 {[%clk 0:02:22]}  Bxc3+ {[%clk 0:02:31]} 12. Qxc3 {[%clk 0:02:23]}  O-O {[%clk 0:02:30]} 13. Bd3 {[%clk 0:02:20]}  Rc8 {[%clk 0:02:28]} 14. O-O {[%clk 0:02:17]}  Nh5 {[%clk 0:02:21]} 15. Bg3 {[%clk 0:02:12]}  f5 {[%clk 0:02:20]} 16. Qb3 {[%clk 0:01:48]}  Qe7 {[%clk 0:02:09]} 17. Be5 {[%clk 0:01:13]}  f4 {[%clk 0:01:41]} 18. e4 {[%clk 0:00:48]}  Nxe5 {[%clk 0:00:51]} 19. dxe5 {[%clk 0:00:45]}  Qg5+ {[%clk 0:00:52]} 20. Kh1 {[%clk 0:00:45]}  Qxe5 {[%clk 0:00:51]} 21. Rxc8 {[%clk 0:00:19]}  Rxc8 {[%clk 0:00:52]} 22. Qxb7 {[%clk 0:00:09]}  Rb8 {[%clk 0:00:52]} 23. Qd7 {[%clk 0:00:05]}  Nf6 {[%clk 0:00:51]} 24. Qa7 {[%clk 0:00:00]}  dxe4 {[%clk 0:00:46]} 0-1


[Site "https://www.chess.com"]

[Event "Titled Tuesday Blitz May 16 Early 2023"]
[White "Spata, German"]
[Black "mestrefeitosa19"]
[WhiteFideId "113026"]
[WhiteElo "2260"]
[BlackElo "2232"]
[Result "1-0"]
[Round "01"]
[TimeControl "180+2"]
[Date "2023.05.16"]
[WhiteClock "0:00:40"]
[BlackClock "0:00:14"]

1. Nf3 {[%clk 0:02:59]}  d5 {[%clk 0:02:59]} 2. e3 {[%clk 0:02:55]}  Nf6 {[%clk 0:02:55]} 3. d4 {[%clk 0:02:54]}  e6 {[%clk 0:02:56]} 4. Be2 {[%clk 0:02:47]}  Be7 {[%clk 0:02:56]} 5. O-O {[%clk 0:02:45]}  O-O {[%clk 0:02:57]} 6. b3 {[%clk 0:02:44]}  b6 {[%clk 0:02:57]} 7. Bb2 {[%clk 0:02:44]}  Bb7 {[%clk 0:02:58]} 8. c4 {[%clk 0:02:43]}  Nbd7 {[%clk 0:02:58]} 9. Nc3 {[%clk 0:02:42]}  c5 {[%clk 0:02:59]} 10. cxd5 {[%clk 0:02:39]}  Nxd5 {[%clk 0:02:58]} 11. Rc1 {[%clk 0:02:36]}  Nxc3 {[%clk 0:02:55]} 12. Bxc3 {[%clk 0:02:36]}  Nf6 {[%clk 0:02:56]} 13. dxc5 {[%clk 0:02:35]}  Bxc5 {[%clk 0:02:53]} 14. Qxd8 {[%clk 0:02:29]}  Rfxd8 {[%clk 0:02:46]} 15. Bxf6 {[%clk 0:02:30]}  gxf6 {[%clk 0:02:43]} 16. Rfd1 {[%clk 0:02:30]}  Be4 {[%clk 0:02:16]} 17. Nd2 {[%clk 0:02:18]}  Bb7 {[%clk 0:01:56]} 18. Bf3 {[%clk 0:02:17]}  Bxf3 {[%clk 0:01:51]} 19. Nxf3 {[%clk 0:02:18]}  e5 {[%clk 0:01:47]} 20. Kf1 {[%clk 0:02:15]}  Ba3 {[%clk 0:01:42]} 21. Rxd8+ {[%clk 0:02:13]}  Rxd8 {[%clk 0:01:43]} 22. Rc7 {[%clk 0:02:02]}  Rd1+ {[%clk 0:01:42]} 23. Ke2 {[%clk 0:02:02]}  Ra1 {[%clk 0:01:42]} 24. Rxa7 {[%clk 0:01:58]}  Rxa2+ {[%clk 0:01:42]} 25. Kd3 {[%clk 0:01:58]}  b5 {[%clk 0:01:36]} 26. b4 {[%clk 0:01:51]}  Ra1 {[%clk 0:01:21]} 27. Nh4 {[%clk 0:01:39]}  Kg7 {[%clk 0:01:08]} 28. Ke4 {[%clk 0:01:31]}  Rc1 {[%clk 0:00:44]} 29. Nf5+ {[%clk 0:01:24]}  Kg6 {[%clk 0:00:44]} 30. Ne7+ {[%clk 0:01:22]}  Kg5 {[%clk 0:00:40]} 31. Rxa3 {[%clk 0:01:19]}  Rc4+ {[%clk 0:00:39]} 32. Kd3 {[%clk 0:01:13]}  Rxb4 {[%clk 0:00:39]} 33. Ra2 {[%clk 0:01:03]}  Rc4 {[%clk 0:00:33]} 34. e4 {[%clk 0:00:59]}  Rd4+ {[%clk 0:00:31]} 35. Ke3 {[%clk 0:00:58]}  Rc4 {[%clk 0:00:28]} 36. Rb2 {[%clk 0:00:55]}  Rc3+ {[%clk 0:00:23]} 37. Ke2 {[%clk 0:00:55]}  Rc4 {[%clk 0:00:20]} 38. f3 {[%clk 0:00:53]}  Rc5 {[%clk 0:00:20]} 39. g3 {[%clk 0:00:48]}  h5 {[%clk 0:00:20]} 40. h4+ {[%clk 0:00:48]}  Kh6 {[%clk 0:00:19]} 41. Kd3 {[%clk 0:00:45]}  Kg7 {[%clk 0:00:18]} 42. Nd5 {[%clk 0:00:44]}  Rc1 {[%clk 0:00:17]} 43. Ne3 {[%clk 0:00:42]}  Rg1 {[%clk 0:00:16]} 44. Rxb5 {[%clk 0:00:41]}  Rxg3 {[%clk 0:00:16]} 45. Nf5+ {[%clk 0:00:40]}  Kg6 {[%clk 0:00:14]} 46. Nxg3 {[%clk 0:00:40]} 1-0


[Site "https://www.chess.com"]